Cogmind - Beta 10.1 @@@ ROGUE MODE // 2020.10.11 @ 15:31:17 Player: Az Result: Destroyed self with Mini Grenade Launcher Performance ------------- Evolutions (1) 500 Regions Visited (2) 400 Robots Destroyed (32) 160 Value Destroyed (778) 778 Prototype IDs (0) 0 Alien Tech Used (0) 0 Bonus (0) 0 TOTAL SCORE: 1838 Bonus ------- None Cogmind --------- Core Integrity 0/400 Matter 290/300 Energy 99/100 System Corruption 4% Temperature Cool (0) Movement Walking (120) Location -9/Materials Parts ------- > --- POWER (1) -------- (None) > --- PROPULSION (3) --- Aluminum Leg Aluminum Leg Aluminum Leg > --- UTILITY (3) ------ Large Storage Unit Improved Signal Interpreter > --- WEAPON (2) ------- Heavy Assault Rifle Mini Grenade Launcher > --- INVENTORY (10) --- Visual Processing Unit Improved Terrain Scanner Hardened Medium Armor Plating Shotgun Shotgun Improved Light Cannon Peak State ------------ > --- POWER ------------ Light Nuclear Core > --- PROPULSION ------- Aluminum Leg Aluminum Leg Aluminum Leg > --- UTILITY ---------- Large Storage Unit Improved Signal Interpreter Hardened Medium Armor Plating > --- WEAPON ----------- Heavy Assault Rifle Shotgun > --- INVENTORY -------- Visual Processing Unit Improved Terrain Scanner Hardened Medium Armor Plating Hardened Medium Armor Plating Heavy Assault Rifle [Rating: 17] Favorites ----------- Power Light Ion Engine Engine Light Ion Engine Power Core Light Nuclear Core Propulsion Aluminum Leg Treads Light Treads Leg Aluminum Leg Utility Small Storage Unit Device Improved Terrain Scanner Storage Small Storage Unit Processor Improved Signal Interpreter Protection Light Armor Plating Weapon Assault Rifle Energy Gun EM Pulse Gun Ballistic Gun Assault Rifle Launcher Grenade Launcher Build | -11 -10 -9 ------- Run | Scr Mat Mat Slots Evolved 2 | . . 2 Power . | . . . Propulsion 1 | . . 1 Utility 1 | . . 1 Weapon . | . . . Parts Attached 43 | 9 9 25 Power 3 | 1 . 2 Engine 1 | 1 . . Core 2 | . . 2 Reactor . | . . . Propulsion 12 | 2 2 8 Treads 1 | . . 1 Leg 11 | 2 2 7 Wheel . | . . . Hover . | . . . Flight . | . . . Utility 10 | 2 2 6 Device 1 | 1 . . Storage 4 | 1 2 1 Processor 1 | . . 1 Hackware . | . . . Protection 4 | . . 4 Artifact . | . . . Weapon 18 | 4 5 9 Energy Gun 7 | 3 2 2 Energy Cannon . | . . . Ballistic Gun 9 | 1 2 6 Ballistic Cannon . | . . . Launcher 2 | . 1 1 Special Weapon . | . . . Impact Weapon . | . . . Slashing Weapon . | . . . Piercing Weapon . | . . . Special Melee Weapon . | . . . Unidentified Prototypes . | . . . Parts Lost 15 | . 2 13 Power 3 | . . 3 Propulsion 4 | . . 4 Utility 1 | . . 1 Weapon 7 | . 2 5 Highest Loss Streak 5 | . 2 5 Average Slot Usage (%) 91 | . 98 84 Engine 7 | . 14 . Core 2 | . . 5 Treads 2 | . . 5 Leg 25 | . 26 23 Device 1 | . 3 . Storage 19 | . 24 13 Processor 4 | . . 8 Protection 2 | . . 6 Energy Gun 5 | . 7 4 Ballistic Gun 14 | . 13 15 Launcher 3 | . 6 . Naked Turns . | . . . Heaviest Build 35 | 12 20 35 Greatest Support 30 | 3 20 30 Greatest Overweight (x) 6 | 3 6 6 Average Overweight (x) 1 | 2 . . Largest Inventory Capacity 10 | 6 10 10 Average Capacity 7 | 5 8 9 Most Carried 9 | 5 9 8 Average Carried 5 | 3 6 6 Final Capacity 10 | 6 10 10 Final Carried 8 | 4 8 6 Class Distribution -------------------- 83% | Mutant 16% | Scavenger-Mutant Dominant Class ---------------- Mutant | -10/Materials Scavenger-Mutant | -9/Materials Resources | -11 -10 -9 ----------- Run | Scr Mat Mat Matter Collected 992 | 288 97 607 Remotely . | . . . Salvage Created 1030 | 93 148 789 Parts 62 | 4 24 34 Haulers Intercepted 1 | . 1 . Recyclers Shooed 2 | . . 2 Parts Field Recycled . | . . . Retrieved Matter . | . . . Parts Self-Destructed . | . . . Prevented . | . . . Kills | -11 -10 -9 ------- Run | Scr Mat Mat Combat Hostiles Destroyed 24 | . 9 15 Melee 1 | . . 1 Guns 19 | . 5 14 AOE 4 | . 4 . Classes Destroyed 8 | 2 4 2 Worker 2 | . 1 1 Tunneler 1 | 1 . . Hauler 1 | . 1 . Recycler 2 | 1 . 1 Watcher 2 | . 2 . Swarmer 9 | . 9 . Grunt 11 | . . 11 Sentry 4 | . . 4 Best Kill Streak 7 | 1 4 7 Combat Bots Only 7 | . 3 7 Max Kills in Single Turn 2 | 1 2 1 Gunslinging . | . . . Exploded 2 | . 2 . Melee 1 | . . 1 Uniques/NPCs Destroyed . | . . . Combat | -11 -10 -9 -------- Run | Scr Mat Mat Damage Taken 2239 | . 467 1772 Core 563 | . 155 408 Absorbed by Shields . | . . . Core Remaining (%) 69 | 100 38 . Volleys Fired 112 | 11 30 71 Largest 2 | 1 2 2 Hottest 79 | 40 60 79 Shots Fired 158 | 11 33 114 Gun 145 | 11 21 113 Cannon . | . . . Launcher 13 | . 12 1 Special . | . . . Kinetic 108 | . 18 90 Thermal 17 | . . 17 Explosive 13 | . 12 1 Electromagnetic 20 | 11 3 6 Robot Hit Streak 14 | 4 5 14 Robot Miss Streak 4 | 3 3 4 Penetration Max . | . . . Secondary Targets 3 | . . 3 Max Gunslinging Chain 1 | . . 1 Shots Hit Robots 103 | 6 16 81 Core Hits 61 | 2 21 38 Critical Hits 1 | . . 1 Critical Kills 1 | . . 1 Critical Parts Destroyed . | . . . Melee Attacks . | . . . Impact . | . . . Slashing . | . . . Piercing . | . . . Sneak Attacks . | . . . Combat Hostiles . | . . . Follow-up Attacks . | . . . Damage Inflicted 2163 | 83 697 1383 Guns 1342 | 83 108 1151 Cannons . | . . . Explosions 774 | . 589 185 Melee . | . . . Ramming 47 | . . 47 Kinetic 1009 | . 85 924 Thermal 362 | . 35 327 Explosive 525 | . 496 29 Electromagnetic 220 | 83 81 56 Impact . | . . . Slashing . | . . . Piercing . | . . . Highest Corruption 4 | . . 4 Average Corruption 3 | . . 3 Corruption Purged . | . . . Effects 13 | . . 13 Message Errors 3 | . . 3 Matter Fused 2 | . . 2 Heat Flow Errors 1 | . . 1 Energy Discharges 2 | . . 2 Parts Rejected 1 | . . 1 Data Loss (minor) 1 | . . 1 Targeting Errors 3 | . . 3 Overload Shots . | . . . Overflow Damage 33 | . 13 20 Projectiles . | . . . Explosions 33 | . 13 20 Melee . | . . . Knockbacks . | . . . Impact . | . . . Kinetic . | . . . Secondary . | . . . Self-Inflicted Damage 230 | . 30 200 Shots 4 | . 1 3 Rammed 6 | . . 6 Targets Rammed 14 | . . 14 Kicked 8 | . . 8 Crushed . | . . . Highest Temperature 279 | . 20 279 Average Temperature 44 | . 10 46 Received Heat Transfer 723 | . . 723 Siege Activations . | . . . Robots Corrupted . | . . . Combat Hostiles . | . . . Parts Fried . | . . . Impact Corruptions . | . . . Robots Melted . | . . . Combat Hostiles . | . . . Parts Melted 1 | . . 1 Heat Transferred 532 | . . 532 Parts Sabotaged . | . . . Parts Stolen . | . . . Parts Stripped . | . . . Power Chain Reactions 2 | . 1 1 Missiles Intercepted . | . . . Alert | -11 -10 -9 ------- Run | Scr Mat Mat Peak Influence 250 | 10 250 222 Initial 42 | . . 42 Average 63 | 1 69 133 Maximum Alert Level 1 | . 1 1 Low Security (%) 91 | 100 83 88 Level 1 8 | . 16 11 Level 2 . | . . . Level 3 . | . . . Level 4 . | . . . Level 5 . | . . . High Security . | . . . Max Security . | . . . Squads Dispatched . | . . . Investigation . | . . . Extermination . | . . . Reinforcement . | . . . Assault . | . . . Garrison . | . . . Intercept . | . . . Construction Impeded . | . . . Haulers Reinforced . | . . . Stealth | -11 -10 -9 --------- Run | Scr Mat Mat Distress Signals 3 | . 2 1 Communications Jammed . | . . . Distress Signals . | . . . Times Spotted 34 | . 15 19 Peak Tracking Total 6 | . 5 6 Tactical Retreats 2 | . 2 . Traps | -11 -10 -9 ------- Run | Scr Mat Mat Traps Triggered . | . . . Indirectly . | . . . Trap Hack Attempts . | . . . Triggered . | . . . Disarmed . | . . . Reprogrammed . | . . . Reused . | . . . Traps Extracted . | . . . Installed . | . . . Triggered . | . . . Machines | -11 -10 -9 ---------- Run | Scr Mat Mat Machines Disabled 4 | . 3 1 Max in Single Turn 1 | . 1 1 Machines Sabotaged . | . . . Garrisons Compromised . | . . . Overloaded Fab Kills . | . . . Fab Network Shutdowns . | . . . Hacking | -11 -10 -9 --------- Run | Scr Mat Mat Machines Accessed 1 | . 1 . Terminals . | . . . Fabricators . | . . . Repair Stations 1 | . 1 . Recycling Units . | . . . Scanalyzers . | . . . Garrison Access . | . . . Total Hacks 7 | . 7 . Successful 6 | . 6 . Failed 1 | . 1 . Catastrophic . | . . . Database Lockouts . | . . . Manual . | . . . Terminals . | . . . Fabricators . | . . . Repair Stations 7 | . 7 . Recycling Units . | . . . Scanalyzers . | . . . Garrison Access . | . . . Terminal Hacks . | . . . Fabricator Hacks . | . . . Repair Station Hacks 6 | . 6 . Scan Component 3 | . 3 . Repair 3 | . 3 . Recycling Unit Hacks . | . . . Scanalyzer . | . . . Garrison Access Hacks . | . . . Unauthorized Hacks . | . . . Terminals . | . . . Fabricators . | . . . Repair Stations . | . . . Recycling Units . | . . . Scanalyzers . | . . . Garrison Access . | . . . Data Cores Recovered . | . . . Used . | . . . Hacking Detections 1 | . 1 . Full Trace Events 1 | . 1 . Feedback Events . | . . . Feedback Blocked . | . . . Robot Schematics Acquired . | . . . Robots Built . | . . . Matter . | . . . Time . | . . . Total Robot Build Rating . | . . . Part Schematics Acquired . | . . . Parts Built . | . . . Matter . | . . . Time . | . . . Total Part Build Rating . | . . . Parts Repaired 3 | . 3 . Time 84 | . 84 . Parts Recycled . | . . . Recycled Matter . | . . . Retrieved Matter . | . . . Retrieved Components . | . . . Parts Scanalyzed . | . . . Part Schematics Acquired . | . . . Parts Damaged . | . . . Bothacking | -11 -10 -9 ------------ Run | Scr Mat Mat Used RIF Installer . | . . . Robots Hacked . | . . . Non-combat . | . . . Combat . | . . . Robot Hacks Applied . | . . . Relay Couplers Released . | . . . Robots Rewired . | . . . Allies Hacked . | . . . Hacks Repelled . | . . . Allies | -11 -10 -9 -------- Run | Scr Mat Mat Total Allies . | . . . Largest Group . | . . . Highest-Rated Group . | . . . Highest-Rated Ally . | . . . Total Orders . | . . . Ally Attacks . | . . . Total Damage . | . . . Kills . | . . . Allies Corrupted . | . . . Allies Melted . | . . . Intel | -11 -10 -9 ------- Run | Scr Mat Mat Robot Analysis Total . | . . . Derelict Logs Recovered . | . . . Drone Launches . | . . . Drone Recoveries . | . . . Exploration | -11 -10 -9 ------------- Run | Scr Mat Mat Turns Passed 2533 | 944 816 773 Spaces Moved 971 | 279 347 345 Core 315 | 279 27 9 Treads . | . . . Legs 656 | . 320 336 Wheels . | . . . Hover . | . . . Flight . | . . . Fastest Speed 50 | 50 120 120 Average Speed 148 | 186 129 136 Slowest Speed 350 | 200 350 350 Overloaded Moves . | . . . Propulsion Burnouts . | . . . Robots Hopped . | . . . Cave-ins Triggered . | . . . Exploration Rate (%) 32 | 20 48 29 Regions Visited 2 Branch Regions . Pre-discovered Areas . | . . . Known Exits Taken . | . . . Unknown Exits Taken 2 | 1 1 . Scrap Searched . | . . . Spaces Dug . | . . . Terrain Destroyed 71 | . 50 21 Melee . | . . . Projectile . | . . . AOE 71 | . 50 21 Terrain Rammed . | . . . Walls Destroyed . | . . . Machines Disabled . | . . . Actions | -11 -10 -9 --------- Run | Scr Mat Mat Total 1906 | 694 684 528 Wait 713 | 379 282 52 Move 969 | 278 346 345 Hop . | . . . Pick Up 32 | 13 9 10 Fast Attach 13 | . 4 9 Attach 25 | 9 5 11 Detach 9 | 2 4 3 Swap 5 | . . 5 Drop 14 | 2 4 8 Fire 112 | 11 30 71 Melee . | . . . Ram . | . . . Kick 14 | . . 14 Crush . | . . . Escape Stasis . | . . . Rewire . | . . . Trap . | . . . Miscellaneous . | . . . Route ------- -11/Scrapyard -10/Materials -9/Materials (discovered 2 exits: [*Mat] / [*Min]) History --------- Turn | Location | Event 36 | -11/Scrapyard | Discovered new exit (range 15) 945 | -11/Scrapyard | Entered Materials 946 | -10/Materials | Build established: Mutant 1435 | -10/Materials | Discovered new exit (range 15) 1536 | -10/Materials | Repaired Aluminum Leg 1604 | -10/Materials | Core integrity fell below 50% 1693 | -10/Materials | Repaired Visual Processing Unit 1720 | -10/Materials | Repaired Aluminum Leg 1761 | -10/Materials | Entered another Materials area 1761 | -9/Materials | Evolved 2 slots: Propulsion x1, Utility x1 1856 | -9/Materials | Lost 3 parts (1p2w) 2058 | -9/Materials | Lost 3 parts (1n1u1w) 2087 | -9/Materials | Discovered new exit (range 15) 2192 | -9/Materials | Core integrity fell below 50% 2222 | -9/Materials | Core integrity fell below 20% 2232 | -9/Materials | Lost 5 parts (1p3n1w) 2245 | -9/Materials | Destroyed 7 combat bots 2333 | -9/Materials | Discovered new exit (range 7) 2530 | -9/Materials | Build established: Scavenger-Mutant 2534 | -9/Materials | Destroyed self with Mini Grenade Launcher Last Messages --------------- R-06 Scavenger collects Sml. Laser. R-06 Scavenger collects Med. Storage Unit. R-06 Scavenger collects Lgt. Armor Plating. R-06 Scavenger collects Lgt. Ion Engine. Acquired 37 matter. System corrupted: Matter fused (-10). Acquired 13 matter. Kicked K-01 Serf out of the way. System corrupted: Hrd. Medium Armor Plating rejected. Kicked K-01 Serf out of the way. Acquired 1 matter. GGC6X6MGQXC9Q70EQIX&S7R=E,DY91KRB Hvy. Assault Rifle destroyed. R-06 Scavenger collects Hrd. Medium Armor Plating. Lgt. Nuclear Core destroyed. Y-45 Defender destroyed. Acquired 4 matter. Acquired 35 matter. Kicked K-01 Serf out of the way. K-01 Serf destroyed. Map ----- +----------------------------------------------------+ | ?????????????????????????????# ####????????????? | | ?????????????????????????????# !!##???????????? | | ?????????????????????????????# !#???????????? | | ?????????????????????????????+ !#???????????? | | ?????????????????????????????# !#???????????? | | ???????????#####?????????????# !#???????????? | | ???????????#!! #########+##### !!##???????????? | | ???????????#!! """ ####????????????? | | ???????????#!! "T" #???????????????? | | ???????????#!! %% #???????????????? | | ???????????#! ###+####???????????????? | | ???????????# = !! # #???????????????? | | ??????########## ! # #???????????????? | | ??????# #### # #???????????????? | | ??????# # ! #???????????????? | | ??????# + ! #???????????????? | | ??????# [ # = #???????????????? | | ??????# #####+####### ########???????????????? | | ######## ##?? ?????# #??????????????????????? | | # #? """ "?????# #??????????????????????? | | """ #! ## """ ""????# #??????????????????????? | | """ + ## """ ""????#=#??????????????????????? | | """ # #?? ???#%#??????????????????????? | | # < #?? ??##+#######????????????????? | | ######## #?? ""T""??# !% [ #????????????????? | | ???????#####????"""????# @* +????????????????? | | ????????????????###????# !!w #????????????????? | | ???????????????????????# ! #????????????????? | | ???????????????????????# +????????????????? | | ???????????????????????#k """ #????????????????? | | ???????????????????????+ """ #????????????????? | | ???????????????????????# """ #????????????????? | | ???????????????????????# #????????????????? | | ???????????????????????## ###??##????????????????? | | ?????????????????????????#???????????????????????? | | ?????????????????????????????????????????????????? | | ?????????????????????????????????????????????????? | | ?????????????????????????????????????????????????? | | ?????????????????????????????????????????????????? | | ?????????????????????????????????????????????????? | | ?????????????????????????????????????????????????? | | ?????????????????????????????????????????????????? | | ?????????????????????????????????????????????????? | | ?????????????????????????????????????????????????? | | | | | | | | | | | | | +----------------------------------------------------+ Best States ------------- Heat Dissipation 28 Energy Generation 14 Energy Capacity 160 Matter Stores 300 Matter Capacity 300 Sight Range 16 Terrain Scan Range 16 Terrain Scan Density 10 Armor Coverage 225 Evasion (%) 50 Item Schematics ----------------- None Robot Schematics ------------------ None Fabricated ------------ Nothing Alien Tech Used ----------------- None Achievements -------------- None Challenges ------------ None Game ------ Seed MobileAnalysisSlayer Manual? 0 Play Time 00:48:38 Cumulative 3.4 hours Start 2020.10.10 @ 02:50:57 End 2020.10.11 @ 15:31:17 Sessions 2 Manual Loads 0 Difficulty Rogue Special Mode None Game No. 7 Rogue 7 Adventurer 0 Explorer 0 Win Type - Total 0 Types 0/0/0/0/0/0/0/0/0 Lore% 1 Gallery% 6 Achievement% 5 Wizard Run 0 Options --------- ASCII 0 Keyboard 0 Movement Numpad Keybinds 0 Fullscreen 2 Font 24/Smallcaps Map View 76x50 Tactical HUD 0 Map Filters NONE Filters NONE Steam 1 RUN: 7311fe4d-7a5f-4ca2-8ff9-680de293155f